bitfinex/quotes_ETHUSD_20240707
["timestamp","ask_amount","ask_price","bid_price","bid_amount"]
[1720328728873,2.30939,3031.1,3030.7,0.1111261]
[1720328729188,2.30939,3031.1,3030.8,0.03924946]
[1720328729340,2.30947,3031.0,3030.8,0.03924946]
[1720328729544,2.30947,3031.0,3030.7,0.1111261]
[1720328729792,2.30947,3031.0,3030.9,0.03790324]
[1720328730093,2.30947,3031.0,3030.8,0.03795168]
[1720328730299,2.30947,3031.0,3030.9,0.03790324]
[1720328730591,0.7271024,3031.0,3030.7,0.1111261]
[1720328730802,0.7271024,3031.0,3030.9,0.03790324]
[1720328730962,0.7271024,3031.0,3030.8,0.03795168]
[1720328731159,0.230924,3031.2,3030.9,0.03790324]
[1720328731364,2.30925,3031.3,3030.9,0.03790324]
[1720328731590,3.139991,3031.5,3030.7,0.1111261]
[1720328731809,0.830901,3031.5,3031.0,0.03788156]
[1720328732016,0.3830901,3031.4,3030.8,2.30962]
[1720328732516,2.30933,3031.2,3030.7,0.1111261]
[1720328732678,0.3830901,3031.4,3030.7,0.1111261]
[1720328732996,2.6922701,3031.4,3030.7,0.1111261]
[1720328733205,0.58323211,3031.3,3030.7,0.1111261]
[1720328733410,2.30939,3031.1,3030.7,0.1111261]
[1720328734412,2.30925,3031.3,3030.7,0.1111261]
[1720328734589,0.3830901,3031.4,3030.7,0.1111261]
[1720328734590,2.6922501,3031.4,3030.7,0.1111261]
[1720328734764,0.3830901,3031.4,3030.7,0.1111261]
[1720328734969,0.3830901,3031.4,3030.7,2.4208161]
[1720328735274,0.3830901,3031.4,3030.7,0.1111261]
[1720328735275,2.96155311,3031.3,3030.7,0.1111261]
[1720328735477,2.30945,3031.1,3030.7,0.1111261]
[1720328737697,10.044,3031.2,3029.8,2.3285]
[1720328737908,2.30995,3030.4,3029.5,2.31055]
[1720328738280,2.31008,3030.2,3029.2,2.31083]
[1720328738490,2.31016,3030.1,3029.2,2.31083]
[1720328739073,2.31016,3030.1,3029.1,2.31085]
[1720328739283,2.31016,3030.1,3028.8,2.31113]
[1720328739284,2.31048,3029.7,3028.8,2.31113]
[1720328739499,2.31048,3029.7,3028.9,4.62207]
[1720328739500,2.541528,3029.7,3028.9,4.62207]
[1720328739700,0.231048,3029.7,3029.0,2.31093]
[1720328739984,1.203048,3029.7,3029.1,2.3109]
[1720328740207,0.972,3029.7,3029.1,2.3109]
[1720328740625,0.972,3029.5,3029.0,2.31098]
[1720328741915,3.0,3030.0,3029.1,2.31089]
[1720328742072,5.31009,3030.2,3029.3,2.31073]
[1720328742576,2.31015,3030.1,3029.1,2.31089]
[1720328742931,2.31015,3030.1,3029.2,2.31078]
[1720328742932,0.762024,3030.0,3029.2,2.31078]
[1720328743094,3.762024,3030.0,3029.2,2.31078]
[1720328743773,3.762024,3030.0,3029.0,2.31097]
[1720328743974,0.762024,3030.0,3029.3,2.31075]
[1720328744179,2.4837,3030.3,3029.1,2.31087]
[1720328744180,5.31008,3030.2,3029.1,2.31087]
[1720328744583,5.31008,3030.2,3029.2,2.31083]
[1720328744927,2.31017,3030.1,3029.2,2.31083]
[1720328745074,5.31008,3030.2,3029.0,2.31093]
[1720328745412,2.31031,3029.9,3029.0,2.31093]
[1720328745617,0.231031,3029.8,3029.0,2.31093]
[1720328746380,2.541421,3029.8,3029.0,2.31093]
[1720328746880,2.541421,3029.8,3028.8,9.54112]
[1720328746881,2.541421,3029.8,3029.1,2.31091]
[1720328747315,2.541421,3029.8,3028.8,9.54112]
[1720328747524,2.541421,3029.8,3028.9,2.31106]
[1720328747730,2.5645921,3029.7,3028.9,2.31106]
[1720328748018,2.5645921,3029.7,3029.0,2.31099]
[1720328748435,2.31054,3029.6,3028.5,2.3285]
[1720328748722,2.31067,3029.5,3028.6,2.31128]
[1720328749014,2.772821,3029.4,3028.6,5.31128]
[1720328749214,0.462121,3029.4,3028.8,2.31113]
[1720328749400,2.31054,3029.6,3028.8,2.31113]
[1720328749809,0.2541421,3029.7,3028.8,2.31113]
[1720328750023,0.2541421,3029.7,3029.1,2.31091]
[1720328750236,0.231031,3029.8,3029.1,2.31091]
[1720328751781,0.231031,3029.8,3028.7,0.06602671]
[1720328751782,0.231031,3029.8,3029.2,2.31082]
[1720328752128,0.231031,3029.8,3029.3,2.31075]
[1720328752807,0.231031,3029.8,3029.1,2.31087]
[1720328753531,0.231031,3029.8,3029.2,2.31082]
[1720328754527,0.2541341,3029.7,3029.2,2.31082]
[1720328754927,0.2541341,3029.7,3029.1,2.31091]
[1720328755420,0.2541341,3029.7,3029.0,2.31097]
[1720328755925,0.2541341,3029.7,3029.1,2.31091]
[1720328756843,0.2541341,3029.7,3028.9,9.54104]
[1720328757001,0.25645741,3029.6,3028.9,9.54104]
[1720328757203,2.56700741,3029.6,3028.9,7.23]
[1720328757527,4.71184,3029.5,3028.9,7.23]
[1720328757727,2.31092,3029.1,3028.9,7.23]
[1720328758233,3.0,3029.4,3028.0,2.3254]
[1720328758234,2.31104,3029.0,3028.2,2.31159]
[1720328758436,0.181104,3028.9,3028.2,2.31159]
[1720328758609,2.492174,3028.9,3028.2,2.31159]
[1720328759338,4.893374,3028.9,3028.1,2.31167]
[1720328759947,2.31135,3028.6,3028.0,7.23]
[1720328760123,2.582304,3028.9,3027.5,12.38]
[1720328760124,2.31143,3028.5,3027.7,2.4230961]
[1720328760448,2.773697,3028.5,3027.7,2.4230961]
[1720328760655,2.582304,3028.9,3027.7,2.4230961]
[1720328760656,2.31117,3028.8,3028.0,2.31175]
[1720328760829,2.582304,3028.9,3028.2,2.31159]
[1720328761028,2.582304,3028.9,3028.3,2.31152]
[1720328761264,2.17,3029.1,3028.4,2.3114]
[1720328761877,2.17,3029.1,3028.3,2.31149]
[1720328762218,2.17,3029.1,3028.3,3.0]
[1720328762763,2.17,3029.1,3028.5,2.31137]
[1720328763260,2.17,3029.1,3028.3,2.31148]
[1720328763416,0.688205,3029.0,3028.3,2.31148]
[1720328763620,2.999205,3029.0,3028.1,2.31163]
[1720328763853,2.31125,3028.7,3028.0,2.31174]
[1720328764064,0.688205,3029.0,3028.0,2.31174]
[1720328764404,0.688205,3029.0,3028.3,2.31151]
[1720328764656,0.688205,3029.0,3028.4,2.31143]
[1720328765024,0.688205,3029.0,3028.5,2.31137]
[1720328765933,0.2858205,3028.9,3027.9,7.23]
[1720328766142,2.5969405,3028.9,3027.9,7.23]
[1720328766336,0.2858205,3028.9,3028.2,2.3116]
[1720328766734,0.2858205,3028.9,3028.0,2.31168]
[1720328766923,2.5969105,3028.9,3028.0,2.31174]
[1720328767125,2.5969105,3028.9,3027.9,7.23]
[1720328767126,0.25969105,3028.8,3028.1,2.31166]
[1720328767431,0.25969105,3028.8,3027.8,2.31189]
[1720328767432,1.14330815,3028.7,3027.8,2.31189]
[1720328767637,2.4012,3028.5,3027.8,2.31189]
[1720328767865,2.4012,3028.5,3027.7,0.1111261]
[1720328767866,2.31177,3028.0,3027.7,0.1111261]
[1720328768072,1.37461006,3027.9,3027.7,0.1111261]
[1720328768359,3.231177,3027.9,3027.7,0.1111261]
[1720328769066,0.231177,3027.9,3027.7,0.1111261]
[1720328769280,3.0,3028.4,3027.7,0.1111261]
[1720328769500,2.31162,3028.2,3027.7,0.1111261]
[1720328769776,2.31177,3028.0,3027.7,0.1111261]
[1720328770121,4.582,3027.8,3027.7,0.1111261]
[1720328770363,2.2701,3027.8,3027.7,0.1111261]
[1720328770568,2.2701,3028.7,3027.8,2.3119]
[1720328770730,2.31107,3028.9,3027.9,2.31176]
[1720328770929,5.74,3029.1,3028.0,2.31169]
[1720328771241,5.74,3029.1,3028.1,2.31166]
[1720328771242,2.17,3029.1,3028.1,2.31166]
[1720328771443,2.17,3029.1,3028.4,2.31144]
[1720328772130,2.17,3029.1,3028.2,2.31159]
[1720328772131,2.17,3029.1,3028.5,2.31136]
[1720328772940,2.17,3029.1,3028.3,2.31148]
[1720328773471,2.17,3029.1,3028.1,7.23]
[1720328773472,2.31104,3029.0,3028.1,9.54162]
[1720328773826,2.31104,3029.0,3028.2,2.31158]
[1720328774067,2.17,3029.1,3028.4,2.31142]
[1720328774935,5.17,3029.1,3028.3,2.31151]
[1720328775327,5.918084,3029.1,3028.1,9.54164]
[1720328775526,3.474,3028.9,3028.1,7.23]
[1720328775747,4.58145,3028.6,3028.1,7.23]
[1720328775955,2.31158,3028.3,3027.7,0.1111261]
[1720328776147,2.2701,3028.6,3027.7,0.1111261]
[1720328776148,2.3116,3028.2,3027.7,0.1111261]
[1720328776345,2.31169,3028.1,3027.7,0.1111261]
[1720328776548,2.31176,3028.0,3027.7,0.1111261]
[1720328778456,2.54277,3028.2,3027.7,0.1111261]
[1720328778757,1.14354143,3028.1,3027.7,0.1111261]
[1720328778961,4.582,3027.8,3027.7,0.1111261]
[1720328779163,5.0402,3027.8,3027.7,0.1111261]
[1720328779694,10.3521,3027.8,3027.7,0.1111261]
[1720328780290,2.31229,3027.3,3027.0,0.003542]
[1720328780503,2.31244,3027.1,3027.0,0.003542]
[1720328780661,2.31331,3026.0,3024.7,0.1111261]
[1720328780860,2.31343,3025.9,3025.0,2.31404]
[1720328781057,2.31321,3026.1,3025.0,2.31404]
[1720328781285,3.0955,3026.2,3024.7,0.1111261]
[1720328781286,3.0955,3026.2,3025.2,2.31382]
[1720328781609,2.31321,3026.1,3025.2,2.31382]
[1720328781761,0.7635,3026.2,3025.3,2.3138]
[1720328781956,2.31337,3025.9,3024.7,0.1111261]
[1720328782186,2.31352,3025.7,3024.7,0.1111261]
[1720328782461,2.31378,3025.4,3024.7,0.1111261]
[1720328782665,2.31353,3025.7,3024.7,2.4253361]
[1720328782895,2.31338,3025.9,3024.8,2.31413]
[1720328783212,3.0,3026.0,3025.0,2.31398]
[1720328783395,3.524658,3026.1,3025.0,2.31398]
[1720328783893,3.524658,3026.1,3025.0,2.31404]
[1720328784096,2.31331,3026.0,3025.0,2.31404]
[1720328784263,3.524658,3026.1,3025.2,2.31389]
[1720328784474,0.524658,3026.1,3025.3,2.31381]
[1720328784899,0.524658,3026.1,3025.4,2.31374]
[1720328785180,2.31275,3026.7,3024.7,0.1111261]
[1720328785181,0.88143017,3027.0,3026.1,2.31319]
[1720328785381,4.58239,3027.3,3026.1,2.31319]
[1720328786098,5.7441,3027.3,3025.2,3.0]
[1720328786315,5.7441,3027.3,3025.5,2.31363]
[1720328786316,2.31284,3026.6,3025.5,2.31363]
[1720328786526,2.31284,3026.6,3025.6,2.31352]
[1720328786833,2.544224,3026.5,3025.6,2.31357]
[1720328787017,0.231284,3026.5,3025.7,2.3135]
[1720328787327,0.231284,3026.5,3025.5,2.31366]
[1720328787490,2.31267,3026.8,3025.8,2.31342]
[1720328787994,2.31283,3026.6,3025.5,2.31359]
[1720328788190,2.31306,3026.3,3025.4,2.31373]
[1720328788396,2.31298,3026.4,3025.4,5.31373]
[1720328788930,2.31305,3026.3,3025.1,2.31394]
[1720328789090,2.31321,3026.1,3025.3,2.3138]
[1720328789602,2.3133,3026.0,3025.1,2.31392]
[1720328789984,5.3133,3026.0,3025.1,2.31392]
[1720328790226,3.0,3026.0,3025.1,2.31392]
[1720328790396,0.5544465,3026.0,3025.2,2.31388]
[1720328790737,2.31329,3026.0,3025.2,2.31388]
[1720328790927,3.0,3026.1,3025.3,2.3138]
[1720328791110,2.31328,3026.0,3025.0,2.31403]
[1720328791312,2.31367,3025.5,3024.6,2.31434]
[1720328791532,2.31367,3025.5,3024.7,0.1111261]
[1720328791824,0.231367,3025.4,3024.7,0.1111261]
[1720328792413,2.31412,3024.9,3024.7,0.1111261]
[1720328792799,2.3142,3024.8,3024.7,0.1111261]
[1720328793265,2.31443,3024.5,3023.5,2.31518]
[1720328793403,2.31443,3024.5,3023.5,2.31517]
[1720328793609,2.31452,3024.4,3023.5,2.31517]
[1720328793803,0.231452,3024.3,3023.6,2.31511]
[1720328794009,5.546042,3024.3,3023.3,2.31533]
[1720328794841,3.231452,3024.3,3023.2,0.0661511]
[1720328795144,3.231452,3024.3,3023.6,2.31509]
[1720328795323,0.3231452,3024.2,3023.4,2.31525]
[1720328795538,3.0,3024.6,3023.0,7.23]
[1720328795706,5.31427,3024.7,3023.8,2.31496]
[1720328795904,5.31427,3024.7,3023.6,2.31511]
[1720328796104,5.31427,3024.7,3023.1,2.31549]
[1720328796105,2.3148,3024.1,3023.1,2.31549]
[1720328796348,3.0,3024.2,3023.1,2.31549]
[1720328796518,2.31483,3024.0,3023.1,2.31549]
[1720328796713,3.0,3024.2,3023.0,7.23]
[1720328796714,5.78875,3024.1,3023.0,7.23]
[1720328797016,2.31495,3023.9,3023.0,9.54557]
[1720328797231,2.31524,3023.5,3022.2,7.23]
[1720328797419,2.31524,3023.5,3022.1,4.58719]
[1720328797420,3.0,3023.6,3022.7,2.31578]
[1720328797620,5.2618,3023.7,3022.1,2.3162]
[1720328797816,5.2618,3023.7,3021.6,0.1111261]
[1720328797817,2.31543,3023.2,3021.6,0.1111261]
[1720328798017,2.17,3023.3,3022.1,2.31626]
[1720328798227,2.17,3023.3,3022.2,2.31618]
[1720328798228,0.448533,3023.2,3022.2,2.31618]
[1720328798629,2.3155,3023.1,3022.2,2.31618]
[1720328799021,3.448533,3023.2,3022.2,2.31618]
[1720328799419,2.3155,3023.1,3022.2,2.31618]
[1720328799637,2.17,3023.3,3022.6,2.31581]
[1720328800035,2.17,3023.3,3022.7,2.38196129]
[1720328800246,2.31482,3024.0,3023.0,2.31557]
[1720328800458,2.31489,3023.9,3023.0,2.31557]
[1720328800660,4.80023574,3024.1,3023.0,2.31557]
[1720328800859,3.83976957,3024.0,3023.0,2.31557]
[1720328801064,1.52495957,3024.0,3023.0,4.59217]
[1720328801263,0.04547574,3024.1,3023.5,2.31513]
[1720328801560,0.04547574,3024.1,3023.6,2.31511]
[1720328802338,0.04547574,3024.1,3023.1,0.06614667]
[1720328802339,0.04547574,3024.1,3023.8,2.31496]
[1720328802771,0.04547574,3024.1,3023.6,2.31509]
[1720328803083,0.04547574,3024.1,3023.3,2.31534]
[1720328803292,0.22154757,3024.0,3023.3,2.31534]
[1720328803439,0.22154757,3024.0,3023.4,2.31526]
[1720328803841,2.31489,3023.9,3022.9,2.31564]
[1720328804042,2.31496,3023.8,3022.9,2.3156]
[1720328804595,2.61624757,3024.0,3022.4,7.23]
[1720328804596,2.3149,3023.9,3022.8,2.31567]
[1720328804776,0.25364476,3023.8,3023.1,2.31549]
[1720328804950,0.25364476,3023.8,3022.9,2.31562]
[1720328805144,2.56860476,3023.8,3022.9,2.31562]
[1720328805387,2.56860476,3023.8,3022.8,2.31567]
[1720328806271,2.31529,3023.4,3022.6,2.31588]
[1720328806867,0.25686048,3023.7,3022.7,0.06616799]
[1720328807072,0.22154757,3024.0,3023.2,2.31542]
[1720328809355,0.22154757,3024.0,3022.9,2.31562]
[1720328809775,0.22154757,3024.0,3023.5,2.31516]
[1720328810155,0.22154757,3024.0,3023.4,2.31526]
[1720328810903,2.53636757,3024.0,3023.0,2.31556]
[1720328811081,2.53636757,3024.0,3023.2,2.31542]
[1720328811267,2.53636757,3024.0,3023.0,2.31556]
[1720328811469,2.53636757,3024.0,3023.1,2.31549]
[1720328811663,2.57307433,3023.9,3023.1,2.31549]
[1720328813498,0.25818433,3023.9,3022.4,7.23]
[1720328813695,3.69554757,3024.0,3022.4,7.23]
[1720328813884,2.31522,3023.5,3022.5,2.31589]
[1720328814194,2.31522,3023.5,3021.9,9.5464]
[1720328814195,2.31574,3022.8,3021.9,9.5464]
[1720328814393,2.31574,3022.8,3022.0,2.31634]
[1720328815193,2.31574,3022.8,3021.6,0.1111261]
[1720328815194,2.31583,3022.7,3021.8,2.31649]
[1720328815393,2.779047,3022.6,3021.8,2.31649]
[1720328815968,2.2833,3022.5,3021.8,2.31649]
[1720328816273,2.31615,3022.3,3021.6,0.1111261]
[1720328816462,4.59927,3022.5,3021.7,2.31657]
[1720328817117,4.48543,3023.2,3022.3,2.31605]
[1720328817404,2.17,3023.2,3022.5,2.31594]
[1720328817604,2.17,3023.2,3022.7,2.3158]
[1720328817901,2.17,3023.2,3022.7,2.31573]
[1720328818208,3.0,3023.6,3022.7,2.31573]
[1720328818209,4.59819,3023.9,3022.9,2.31559]
[1720328818419,0.59788476,3023.8,3023.1,2.31548]
[1720328820059,2.91286476,3023.8,3022.9,2.31559]
[1720328820296,2.91286476,3023.8,3022.7,2.31579]
[1720328820297,2.83466648,3023.7,3022.7,2.31579]
[1720328820594,2.83466648,3023.7,3022.6,2.31588]
[1720328820898,0.51961648,3023.7,3022.9,2.31565]
[1720328821109,2.83465648,3023.7,3022.9,2.31565]
[1720328821483,0.51961648,3023.7,3023.0,2.3155]
[1720328821675,2.2833,3023.9,3022.8,2.31572]
[1720328822011,2.2833,3023.9,3023.1,2.31548]
[1720328822179,1.1450678,3023.8,3023.1,2.31548]
[1720328822389,2.2833,3023.9,3023.1,2.31548]
[1720328822589,1.14507344,3023.8,3023.1,2.31548]
[1720328822928,6.8933,3024.4,3022.6,2.4752]
[1720328823071,1.14499264,3024.3,3023.6,2.3151]
[1720328823276,6.8933,3024.4,3023.7,2.31503]
[1720328824886,1.14491244,3024.3,3023.7,2.31503]
[1720328825080,6.8933,3024.4,3023.7,2.31503]
[1720328825304,0.68933,3024.3,3023.7,2.31503]
[1720328825677,0.68933,3024.3,3023.6,2.3151]
[1720328826374,0.68933,3024.3,3023.8,2.31496]
[1720328829376,0.68933,3024.3,3023.6,2.3151]
[1720328829571,0.68933,3024.3,3023.4,2.31526]
[1720328829823,3.072923,3024.2,3023.2,2.31541]
[1720328830110,3.072923,3024.2,3022.4,9.54597]
[1720328830111,3.474,3023.8,3022.4,9.54597]
[1720328830270,2.31537,3023.3,3022.4,2.31602]
[1720328830474,0.231537,3023.2,3022.2,2.31616]
[1720328830713,0.231537,3023.2,3022.4,2.31603]
[1720328831733,2.31529,3023.4,3022.5,2.31595]
[1720328831874,2.3152,3023.5,3022.5,2.31595]
[1720328832247,2.31537,3023.3,3022.3,2.31608]
[1720328832376,2.31537,3023.3,3022.2,2.31616]
[1720328832582,2.31537,3023.3,3022.4,2.31601]
[1720328832819,0.231537,3023.2,3022.4,2.31601]
[1720328834380,0.231537,3023.2,3022.5,2.31595]
[1720328835219,5.31505,3023.7,3022.8,2.31572]
[1720328835392,2.31537,3023.3,3022.5,2.31595]
[1720328836705,2.31542,3023.2,3022.3,2.31608]
[1720328837017,2.3152,3023.5,3021.8,9.54646]
[1720328837018,2.31582,3022.7,3021.8,9.54646]
[1720328837192,0.231582,3022.6,3021.8,2.31646]
[1720328837574,0.231582,3022.6,3021.9,2.31639]
[1720328837980,0.231582,3022.6,3022.1,2.31625]
[1720328838213,2.31565,3022.9,3022.1,2.31625]
[1720328840933,2.4426,3023.0,3022.1,2.31625]
[1720328841319,4.75825,3023.0,3022.1,2.31625]
[1720328842627,4.75825,3023.0,3021.7,2.31656]
[1720328842628,2.31596,3022.5,3021.7,2.31656]
[1720328843137,5.9166,3023.0,3022.1,2.31626]
[1720328843138,2.31567,3022.9,3022.1,2.31626]
[1720328843321,0.475827,3022.8,3022.1,2.31626]
[1720328843657,0.475827,3022.8,3022.2,2.31618]
[1720328843961,2.17,3023.1,3022.3,2.31606]
[1720328845330,2.31573,3022.8,3022.0,2.31634]
[1720328845742,2.31573,3022.8,3021.8,2.31642]
[1720328846338,2.31613,3022.3,3021.6,0.1111261]
[1720328846545,2.31621,3022.2,3021.6,0.1111261]
[1720328846755,0.463234,3022.1,3021.6,0.1111261]
[1720328849187,1.01611091,3022.6,3022.1,2.31626]
[1720328849332,5.50183886,3023.1,3022.1,2.31626]
[1720328849521,2.5257747,3023.0,3022.1,2.31626]
[1720328849885,0.80276136,3022.9,3022.1,2.31626]
[1720328850159,3.11843136,3022.9,3022.1,2.31626]
[1720328851200,0.80276136,3022.9,3022.1,2.31626]
[1720328852356,0.80276136,3022.9,3021.9,2.31641]
[1720328852536,1.81904022,3022.9,3021.9,2.31641]
[1720328852740,0.18190402,3022.8,3021.9,2.31641]
[1720328853839,2.31589,3022.6,3021.9,2.31641]
[1720328854437,2.31589,3022.6,3021.7,2.31656]
[1720328854768,2.31589,3022.6,3021.8,2.31649]
[1720328855066,2.49763402,3022.8,3021.9,2.31642]
[1720328855262,2.74748742,3022.7,3021.9,2.31642]
[1720328855576,2.31588,3022.6,3021.9,2.31642]
[1720328856767,2.31606,3022.4,3021.6,2.4277561]
[1720328858267,2.31606,3022.4,3021.7,2.31657]
[1720328861084,2.31588,3022.6,3021.8,2.31649]
[1720328861284,1.14557348,3022.5,3022.2,2.31619]
[1720328861570,0.80276136,3022.9,3022.2,2.31619]
[1720328861935,1.14541328,3022.8,3022.2,2.31619]
[1720328862129,0.80276136,3022.9,3022.2,2.31619]
[1720328862560,1.45727733,3022.8,3022.0,4.80764]
[1720328862758,1.14544319,3022.7,3022.0,4.80764]
[1720328863271,1.14544319,3022.7,3022.1,2.31624]
[1720328863836,1.14544319,3022.7,3022.0,2.31634]
[1720328864340,1.14544319,3022.7,3022.1,2.31622]
[1720328865041,0.31183414,3022.8,3022.1,2.31622]
[1720328865262,1.48853327,3022.7,3022.1,2.31622]
[1720328865572,1.48853327,3022.7,3021.6,2.6024261]
[1720328865573,1.14554399,3022.6,3021.9,2.3164]
[1720328865880,1.14554399,3022.5,3021.9,2.3164]
[1720328866186,2.65889555,3022.7,3021.9,2.3164]
[1720328866362,1.44255636,3022.6,3021.9,2.3164]
[1720328866570,1.14548339,3022.5,3021.9,2.3164]
[1720328867172,1.14548339,3022.5,3022.0,2.31633]
[1720328868185,0.29707297,3022.6,3022.0,2.31633]
[1720328868479,1.14548638,3022.5,3022.0,2.31633]
[1720328868651,0.34302555,3022.7,3022.0,2.31633]
[1720328868848,1.14550114,3022.6,3022.3,2.31611]
[1720328869063,1.14550114,3022.5,3022.3,2.31611]
[1720328869378,4.01631318,3023.0,3022.3,2.31611]
[1720328869681,2.43115471,3022.9,3022.2,2.31619]
[1720328870011,1.14546497,3022.8,3022.2,2.31619]
[1720328870178,1.14546497,3022.8,3022.1,2.31626]
[1720328870179,1.14546497,3022.7,3022.1,2.31626]
[1720328870344,4.61767292,3022.9,3022.1,2.31626]
[1720328870545,1.14549887,3022.8,3022.1,2.31626]
[1720328870888,0.57631718,3022.7,3022.1,2.31626]
[1720328871180,1.14549887,3022.6,3022.1,2.31626]
[1720328871381,0.57631718,3022.7,3022.1,2.31626]
[1720328871547,1.145508,3022.5,3022.1,2.31626]
[1720328871756,1.145508,3022.4,3022.1,2.31626]
[1720328871938,0.57631718,3022.7,3021.6,2.6024261]
[1720328871939,0.57631718,3022.7,3021.7,2.31655]
[1720328872135,1.53636128,3022.6,3022.0,2.31634]
[1720328872370,1.14551924,3022.5,3022.0,2.31634]
[1720328873680,1.14551924,3022.5,3021.8,2.31644]
[1720328873914,2.16183242,3022.5,3021.9,2.3164]
[1720328874208,1.14551924,3022.4,3021.9,2.3164]
[1720328874425,2.55260829,3022.4,3021.9,2.3164]
[1720328874578,1.14558291,3022.3,3021.9,2.3164]
[1720328874778,1.01898691,3022.4,3021.9,2.3164]
[1720328875028,1.1455838,3022.3,3021.6,0.1111261]
[1720328875208,2.16450031,3022.2,3021.6,2.4277661]
[1720328875418,2.38095034,3022.1,3021.6,2.4277661]
[1720328875623,1.23536654,3022.1,3021.6,2.4277661]
[1720328876180,1.23536654,3022.1,3021.6,0.1111261]
[1720328876425,2.16460341,3022.0,3021.6,0.1111261]
[1720328876725,1.01891651,3022.0,3021.6,0.1111261]
[1720328876902,1.5099297,3022.0,3021.6,0.1111261]
[1720328877702,1.01891651,3022.0,3021.6,0.1111261]
[1720328877911,1.01891651,3022.0,3021.6,2.4277561]
[1720328878091,1.01891651,3022.1,3021.7,2.31657]
[1720328879225,1.01891651,3022.1,3021.6,0.1111261]
[1720328879379,2.16461917,3022.0,3021.6,0.1111261]
[1720328879579,1.60285296,3022.0,3021.6,0.1111261]
[1720328880494,1.01891651,3021.9,3021.6,0.1111261]
[1720328881217,1.01891651,3022.0,3021.6,0.1111261]
[1720328881621,1.01891651,3022.0,3021.6,2.4277661]
[1720328881834,1.01891651,3022.1,3021.8,2.31649]
[1720328882415,1.35855535,3022.3,3021.8,2.31643]
[1720328882416,1.01891651,3022.3,3021.8,2.31643]
[1720328882617,1.01891651,3022.2,3021.8,2.31643]
[1720328883182,1.01891651,3022.2,3021.9,2.3164]
[1720328883481,1.01891651,3022.2,3021.7,2.31651]
[1720328883482,1.01891651,3022.2,3021.8,2.31648]
[1720328883679,1.01891651,3022.2,3021.6,2.4277661]
[1720328883680,1.01891651,3022.2,3022.1,2.31627]
[1720328883885,1.70125508,3022.5,3022.2,2.31612]
[1720328883886,1.01891651,3022.5,3022.2,2.31612]
[1720328884183,1.01891651,3022.6,3022.3,2.31604]
[1720328884627,1.01891651,3022.5,3022.3,2.31604]
[1720328885236,1.01891651,3022.6,3022.3,2.31604]
[1720328885727,1.01891651,3022.5,3022.3,2.31604]
[1720328886227,1.01891651,3022.4,3022.3,2.31604]
[1720328886583,0.23774719,3022.4,3021.8,2.31645]
[1720328886785,0.23774719,3022.4,3021.6,0.1111261]
[1720328886786,1.02074434,3022.2,3021.6,2.4277761]
[1720328887000,1.02074434,3022.2,3021.7,2.31656]
[1720328887222,1.02074434,3022.2,3021.6,2.4277561]
[1720328887402,1.02074434,3022.1,3021.6,2.4277561]
[1720328887591,1.02074434,3022.0,3021.6,2.4277561]
[1720328887795,1.02109003,3022.1,3021.6,2.4277561]
[1720328888326,1.02109003,3022.1,3021.7,2.31657]
[1720328888535,1.02109003,3022.3,3022.0,2.31628]
[1720328888818,1.02109003,3022.4,3022.2,2.31619]
[1720328889381,1.02109003,3022.4,3022.1,2.31626]
[1720328889382,1.02109003,3022.4,3022.3,2.31611]
[1720328889582,1.36145337,3022.6,3022.3,2.31611]
[1720328889583,1.02109003,3022.6,3022.3,2.31611]
[1720328890187,1.02109003,3022.5,3022.3,2.31611]
[1720328890387,1.02109003,3022.4,3022.3,2.31611]
[1720328891017,1.02109003,3022.5,3022.3,2.31611]
[1720328891284,1.02109003,3022.6,3022.3,2.31611]
[1720328892036,1.02109003,3022.5,3022.4,2.31604]
[1720328892215,1.02109003,3022.7,3022.5,2.31596]
[1720328892387,1.02109003,3022.8,3022.5,2.31596]
[1720328892584,1.36145337,3022.9,3022.5,2.31596]
[1720328892585,1.02132949,3022.7,3022.5,2.31596]
[1720328892790,1.02132949,3022.8,3022.7,2.31581]
[1720328893201,1.02136579,3022.9,3022.8,2.31573]
[1720328893407,3.87227632,3023.1,3022.9,2.3156]
[1720328893408,1.02136579,3023.1,3022.9,2.3156]
[1720328893598,1.36182105,3023.2,3022.9,2.3156]
[1720328893599,1.02136579,3023.2,3022.9,2.3156]
[1720328893799,1.02136579,3023.2,3022.7,4.60841]
[1720328893800,1.02136579,3023.2,3023.0,2.31553]
[1720328894126,1.02136579,3023.4,3023.2,2.31542]
[1720328894334,1.02136579,3023.5,3023.3,2.31533]
[1720328894546,1.02136579,3023.6,3023.3,2.31533]
[1720328894694,1.02136579,3023.7,3022.7,2.2926]
[1720328894893,1.02136579,3023.8,3023.5,2.31519]
[1720328895241,1.36182105,3023.9,3023.6,2.31511]
[1720328895242,1.02136579,3023.9,3023.6,2.31511]
[1720328896138,1.02136579,3024.0,3023.6,2.31511]
[1720328896293,1.02136579,3024.0,3023.5,2.31513]
[1720328896493,1.02136579,3023.9,3023.5,2.31513]
[1720328896732,0.23831868,3023.9,3023.5,2.31513]
[1720328897648,1.02136579,3024.1,3023.5,2.31513]
[1720328898429,1.02136579,3024.2,3023.6,2.31511]
[1720328898629,1.02136579,3024.2,3020.7,1.73227619]
[1720328898630,1.02136579,3024.3,3023.7,2.31503]
[1720328898922,3.33579579,3024.5,3023.7,2.31503]
[1720328899327,2.31443,3024.5,3023.7,2.31503]
[1720328899847,3.33579579,3024.5,3023.7,2.31503]
[1720328900130,0.46976168,3024.4,3023.7,2.31503]
[1720328900497,3.33579579,3024.5,3023.7,2.31503]
[1720328900694,2.31443,3024.5,3023.7,2.31503]
[1720328900890,1.02136579,3024.6,3023.6,0.06614153]
[1720328901114,2.31428,3024.7,3023.9,2.31488]
[1720328901318,3.0,3024.8,3024.0,2.31476]
[1720328901622,0.86775958,3024.7,3024.0,2.31476]